[Event "Late-Titled-Tuesday-Blitz-May-14-2024"]
[Site "Chess.com"]
[Date "2024.05.14"]
[Round "11"]
[White "MKlose11"]
[Black "KNVB"]
[Result "1-0"]
[WhiteElo "2644"]
[BlackElo "2789"]
[TimeControl "180+1"]
[EndTime "16:07:44 PDT"]
[Termination "MKlose11 won by checkmate"]

1. e4 {[%clk 0:02:56.9]} 1... b6 {[%clk 0:02:59.7]} 2. d4 {[%clk 0:02:50.2]}
2... Bb7 {[%clk 0:02:59.8]} 3. Bd3 {[%clk 0:02:50.9]} 3... e6 {[%clk 0:03:00.4]}
4. Qe2 {[%clk 0:02:49]} 4... d5 {[%clk 0:03:00.7]} 5. e5 {[%clk 0:02:44.6]} 5...
c5 {[%clk 0:03:01.1]} 6. c3 {[%clk 0:02:45.1]} 6... Qc8 {[%clk 0:03:01.7]} 7.
Be3 {[%clk 0:02:42]} 7... Ba6 {[%clk 0:03:02.1]} 8. Nf3 {[%clk 0:02:41]} 8...
Bxd3 {[%clk 0:03:02.4]} 9. Qxd3 {[%clk 0:02:41.9]} 9... Qa6 {[%clk 0:03:03.2]}
10. Ke2 {[%clk 0:02:39.4]} 10... Qxd3+ {[%clk 0:02:53.6]} 11. Kxd3 {[%clk
0:02:39.3]} 11... Nc6 {[%clk 0:02:53.8]} 12. a3 {[%clk 0:02:36.9]} 12... c4+
{[%clk 0:02:53.5]} 13. Ke2 {[%clk 0:02:27.5]} 13... Nge7 {[%clk 0:02:54.4]} 14.
Nbd2 {[%clk 0:02:25.8]} 14... Na5 {[%clk 0:02:55.1]} 15. Ne1 {[%clk 0:02:22.6]}
15... Kd7 {[%clk 0:02:48.2]} 16. f4 {[%clk 0:02:22.8]} 16... h5 {[%clk
0:02:48.4]} 17. Nef3 {[%clk 0:02:22.8]} 17... Nf5 {[%clk 0:02:48.6]} 18. Ng5
{[%clk 0:02:21.2]} 18... f6 {[%clk 0:02:45.4]} 19. Ngf3 {[%clk 0:02:18.8]} 19...
Be7 {[%clk 0:02:45.6]} 20. g3 {[%clk 0:02:16]} 20... Rag8 {[%clk 0:02:41]} 21.
Rag1 {[%clk 0:02:15.4]} 21... Nc6 {[%clk 0:02:36]} 22. h3 {[%clk 0:02:05.3]}
22... fxe5 {[%clk 0:02:22.5]} 23. fxe5 {[%clk 0:01:52.3]} 23... h4 {[%clk
0:01:57.4]} 24. gxh4 {[%clk 0:01:50.8]} 24... Bxh4 {[%clk 0:01:58.3]} 25. Rh2
{[%clk 0:01:39.1]} 25... Bg3 {[%clk 0:01:45.7]} 26. Rhg2 {[%clk 0:01:34.5]}
26... Rxh3 {[%clk 0:01:02.9]} 27. Ng5 {[%clk 0:01:31.3]} 27... Rh2 {[%clk
0:01:03]} 28. Rxh2 {[%clk 0:01:21.9]} 28... Bxh2 {[%clk 0:01:03.9]} 29. Rg2
{[%clk 0:01:22.6]} 29... Bg3 {[%clk 0:00:53.2]} 30. Nf1 {[%clk 0:01:16.5]} 30...
Bh4 {[%clk 0:00:49.6]} 31. Nf3 {[%clk 0:01:15.8]} 31... Bd8 {[%clk 0:00:34.8]}
32. Rh2 {[%clk 0:01:10]} 32... b5 {[%clk 0:00:22.4]} 33. Rh7 {[%clk 0:01:09]}
33... Ke8 {[%clk 0:00:18.5]} 34. Bf4 {[%clk 0:01:06.9]} 34... a5 {[%clk
0:00:18.5]} 35. Ne3 {[%clk 0:01:01.4]} 35... Nxe3 {[%clk 0:00:11.1]} 36. Kxe3
{[%clk 0:00:55.8]} 36... Ne7 {[%clk 0:00:11.2]} 37. Bg5 {[%clk 0:00:43.5]} 37...
Nf5+ {[%clk 0:00:11.6]} 38. Kf4 {[%clk 0:00:44]} 38... Bc7 {[%clk 0:00:12]} 39.
Kg4 {[%clk 0:00:33.5]} 39... Bb6 {[%clk 0:00:07.5]} 40. Nh4 {[%clk 0:00:31.1]}
40... Nxh4 {[%clk 0:00:06.6]} 41. Rxh4 {[%clk 0:00:30.9]} 41... Kf7 {[%clk
0:00:04.6]} 42. Rh1 {[%clk 0:00:26.2]} 42... Kg6 {[%clk 0:00:02.5]} 43. Rf1
{[%clk 0:00:25.6]} 43... Rb8 {[%clk 0:00:02.1]} 44. Bh4 {[%clk 0:00:20.5]} 44...
Bc7 {[%clk 0:00:02]} 45. Kh3 {[%clk 0:00:18]} 45... Bb6 {[%clk 0:00:01.7]} 46.
Rg1+ {[%clk 0:00:17.6]} 46... Kf7 {[%clk 0:00:02.3]} 47. Rf1+ {[%clk 0:00:17.3]}
47... Kg8 {[%clk 0:00:02.9]} 48. Rg1 {[%clk 0:00:16.5]} 48... Rb7 {[%clk
0:00:02.9]} 49. Kg4 {[%clk 0:00:15.6]} 49... b4 {[%clk 0:00:03.3]} 50. axb4
{[%clk 0:00:15.8]} 50... axb4 {[%clk 0:00:04.2]} 51. Ra1 {[%clk 0:00:16]} 51...
bxc3 {[%clk 0:00:03.3]} 52. bxc3 {[%clk 0:00:16.4]} 52... Kf7 {[%clk 0:00:03.5]}
53. Ra6 {[%clk 0:00:16.3]} 53... Bc7 {[%clk 0:00:02.3]} 54. Bg5 {[%clk
0:00:16.4]} 54... Rb6 {[%clk 0:00:01.2]} 55. Ra7 {[%clk 0:00:16.4]} 55... Rc6
{[%clk 0:00:01.8]} 56. Bd8 {[%clk 0:00:16.6]} 56... Kg6 {[%clk 0:00:01.7]} 57.
Bxc7 {[%clk 0:00:14.7]} 57... Kh6 {[%clk 0:00:01.8]} 58. Ba5 {[%clk 0:00:14.3]}
58... Kg6 {[%clk 0:00:01.8]} 59. Bb4 {[%clk 0:00:14.7]} 59... Rc8 {[%clk
0:00:01.6]} 60. Re7 {[%clk 0:00:14.5]} 60... Rc6 {[%clk 0:00:02.3]} 61. Rd7
{[%clk 0:00:14.7]} 61... Rc8 {[%clk 0:00:02.2]} 62. Rd6 {[%clk 0:00:13.9]} 62...
Kf7 {[%clk 0:00:02.8]} 63. Kg5 {[%clk 0:00:14.4]} 63... Rc7 {[%clk 0:00:02.6]}
64. Ra6 {[%clk 0:00:13.5]} 64... Rb7 {[%clk 0:00:03]} 65. Bc5 {[%clk 0:00:13.9]}
65... Rb3 {[%clk 0:00:03.3]} 66. Ra7+ {[%clk 0:00:14.4]} 66... Kg8 {[%clk
0:00:03.3]} 67. Bb4 {[%clk 0:00:15.1]} 67... Rb1 {[%clk 0:00:02.5]} 68. Re7
{[%clk 0:00:14.9]} 68... Rg1+ {[%clk 0:00:03.2]} 69. Kh4 {[%clk 0:00:15.5]}
69... Rg6 {[%clk 0:00:03.5]} 70. Kh5 {[%clk 0:00:14.4]} 70... Kh7 {[%clk
0:00:03.2]} 71. Ba5 {[%clk 0:00:12.5]} 71... Rh6+ {[%clk 0:00:02]} 72. Kg5
{[%clk 0:00:12.9]} 72... Rg6+ {[%clk 0:00:02.8]} 73. Kf4 {[%clk 0:00:13.3]}
73... Kg8 {[%clk 0:00:03.3]} 74. Ke3 {[%clk 0:00:13]} 74... Rg3+ {[%clk
0:00:02.9]} 75. Kd2 {[%clk 0:00:12.6]} 75... Rg6 {[%clk 0:00:03.3]} 76. Bb4
{[%clk 0:00:12.6]} 76... Rh6 {[%clk 0:00:02.3]} 77. Kc2 {[%clk 0:00:13.1]} 77...
Rh2+ {[%clk 0:00:01.5]} 78. Kb1 {[%clk 0:00:12.9]} 78... Rh6 {[%clk 0:00:02.4]}
79. Kb2 {[%clk 0:00:13.3]} 79... g5 {[%clk 0:00:02.9]} 80. Kc2 {[%clk
0:00:13.3]} 80... g4 {[%clk 0:00:02.6]} 81. Kd2 {[%clk 0:00:12.1]} 81... g3
{[%clk 0:00:02.7]} 82. Ke2 {[%clk 0:00:11.5]} 82... g2 {[%clk 0:00:01.6]} 83.
Kf2 {[%clk 0:00:11.5]} 83... Rg6 {[%clk 0:00:02.4]} 84. Kg1 {[%clk 0:00:12]}
84... Kh8 {[%clk 0:00:03.1]} 85. Re8+ {[%clk 0:00:11.6]} 85... Kg7 {[%clk
0:00:03.4]} 86. Rf8 {[%clk 0:00:12.5]} 86... Rg3 {[%clk 0:00:02.2]} 87. Rf2
{[%clk 0:00:12.4]} 87... Rd3 {[%clk 0:00:02.1]} 88. Rxg2+ {[%clk 0:00:13.3]}
88... Kh6 {[%clk 0:00:01.9]} 89. Rf2 {[%clk 0:00:13.1]} 89... Kg5 {[%clk
0:00:02.3]} 90. Rf6 {[%clk 0:00:13.1]} 90... Kg4 {[%clk 0:00:02]} 91. Rxe6
{[%clk 0:00:13.5]} 91... Kf3 {[%clk 0:00:02.4]} 92. Rf6+ {[%clk 0:00:13.5]}
92... Kg3 {[%clk 0:00:02.8]} 93. Rg6+ {[%clk 0:00:13.4]} 93... Kf3 {[%clk
0:00:03.4]} 94. e6 {[%clk 0:00:10.8]} 94... Rd1+ {[%clk 0:00:02]} 95. Kh2 {[%clk
0:00:11.2]} 95... Rd2+ {[%clk 0:00:02.7]} 96. Kh3 {[%clk 0:00:11.5]} 96... Rd1
{[%clk 0:00:03.6]} 97. Kh4 {[%clk 0:00:11.4]} 97... Kf4 {[%clk 0:00:04]} 98.
Rg4+ {[%clk 0:00:09.7]} 98... Kf5 {[%clk 0:00:04.4]} 99. Rg3 {[%clk 0:00:07.2]}
99... Kxe6 {[%clk 0:00:02.3]} 100. Kg4 {[%clk 0:00:07.5]} 100... Rf1 {[%clk
0:00:02.3]} 101. Rf3 {[%clk 0:00:07.6]} 101... Rg1+ {[%clk 0:00:01.7]} 102. Kf4
{[%clk 0:00:08.5]} 102... Kf6 {[%clk 0:00:01.8]} 103. Ke3+ {[%clk 0:00:08.8]}
103... Kg5 {[%clk 0:00:01.6]} 104. Kd2 {[%clk 0:00:08.3]} 104... Kg4 {[%clk
0:00:01.8]} 105. Re3 {[%clk 0:00:08.6]} 105... Kf4 {[%clk 0:00:01.9]} 106. Re2
{[%clk 0:00:09]} 106... Kf3 {[%clk 0:00:01.7]} 107. Re3+ {[%clk 0:00:08.7]}
107... Kf4 {[%clk 0:00:01.9]} 108. Bd6+ {[%clk 0:00:08]} 108... Kg4 {[%clk
0:00:02.4]} 109. Kc2 {[%clk 0:00:07.5]} 109... Rg2+ {[%clk 0:00:02.5]} 110. Kb1
{[%clk 0:00:07.8]} 110... Rg1+ {[%clk 0:00:02]} 111. Kb2 {[%clk 0:00:07.4]}
111... Rd1 {[%clk 0:00:02.1]} 112. Ka3 {[%clk 0:00:06.1]} 112... Rb1 {[%clk
0:00:02.4]} 113. Bb4 {[%clk 0:00:05]} 113... Kf4 {[%clk 0:00:02.1]} 114. Re5
{[%clk 0:00:04.6]} 114... Ra1+ {[%clk 0:00:02.3]} 115. Kb2 {[%clk 0:00:05.1]}
115... Rf1 {[%clk 0:00:02.2]} 116. Rxd5 {[%clk 0:00:05.6]} 116... Ke4 {[%clk
0:00:03]} 117. Rh5 {[%clk 0:00:04.7]} 117... Kd3 {[%clk 0:00:03.8]} 118. Rh3+
{[%clk 0:00:05]} 118... Ke4 {[%clk 0:00:03.7]} 119. Rh2 {[%clk 0:00:05.4]}
119... Rf5 {[%clk 0:00:02.3]} 120. Rc2 {[%clk 0:00:06.3]} 120... Rf3 {[%clk
0:00:02]} 121. Ka3 {[%clk 0:00:06.6]} 121... Rf7 {[%clk 0:00:02.1]} 122. Ka4
{[%clk 0:00:06.9]} 122... Ra7+ {[%clk 0:00:02.2]} 123. Kb5 {[%clk 0:00:07.4]}
123... Kd3 {[%clk 0:00:02.3]} 124. Rc1 {[%clk 0:00:07.3]} 124... Rb7+ {[%clk
0:00:02.3]} 125. Kc6 {[%clk 0:00:07.6]} 125... Rb8 {[%clk 0:00:02]} 126. d5
{[%clk 0:00:08]} 126... Kd2 {[%clk 0:00:02.3]} 127. Rh1 {[%clk 0:00:06.6]}
127... Rc8+ {[%clk 0:00:02.3]} 128. Kd7 {[%clk 0:00:06.8]} 128... Rg8 {[%clk
0:00:02.6]} 129. d6 {[%clk 0:00:07.2]} 129... Rg7+ {[%clk 0:00:03.2]} 130. Kc6
{[%clk 0:00:07.6]} 130... Kd3 {[%clk 0:00:03.8]} 131. d7 {[%clk 0:00:07.8]}
131... Kc2 {[%clk 0:00:03]} 132. Kc7 {[%clk 0:00:07.7]} 132... Kb3 {[%clk
0:00:03.5]} 133. Kc8 {[%clk 0:00:08.2]} 133... Rg6 {[%clk 0:00:03.2]} 134. d8=Q
{[%clk 0:00:08.5]} 134... Ra6 {[%clk 0:00:02]} 135. Qc7 {[%clk 0:00:07.8]}
135... Ra2 {[%clk 0:00:01.8]} 136. Kb7 {[%clk 0:00:08.2]} 136... Re2 {[%clk
0:00:01.1]} 137. Rb1+ {[%clk 0:00:08.4]} 137... Kc2 {[%clk 0:00:01.3]} 138. Qh7+
{[%clk 0:00:06.6]} 138... Kd2 {[%clk 0:00:00.9]} 139. Qh1 {[%clk 0:00:07.3]}
139... Re7+ {[%clk 0:00:00.7]} 140. Bxe7 {[%clk 0:00:06.8]} 140... Kc2 {[%clk
0:00:00.9]} 141. Qd1+ {[%clk 0:00:06.9]} 141... Kxc3 {[%clk 0:00:01.4]} 142.
Bf6# {[%clk 0:00:07.7]} 1-0